Cogmind - Beta 13 @@@ ROGUE MODE // 2024.03.14 @ 13:03:31 Player: strategineer Result: Destroyed by H-55 Commando with Gauss Rifle Performance ------------- Evolutions (2) 1000 Regions Visited (4) 800 Robots Destroyed (28) 140 Value Destroyed (770) 770 Prototype IDs (3) 60 Alien Tech Used (0) 0 Bonus (200) 200 TOTAL SCORE: 2970 Bonus ------- Pacifist 200 Cogmind --------- Core Integrity 0/550 Matter 300/300 Energy 100/100 System Corruption 0% Temperature Cool (0) Movement Core (50) Location -8/Materials Parts ------- > --- POWER (1) -------- (None) > --- PROPULSION (3) --- (None) > --- UTILITY (4) ------ (None) > --- WEAPON (3) ------- (None) > --- INVENTORY (5) ---- Medium Matter Pod (100) Medium Matter Pod (100) Peak State ------------ > --- POWER ------------ Improved Ion Engine > --- PROPULSION ------- Light Treads Light Treads Improved Treads > --- UTILITY ---------- Small Storage Unit Sensor Array Medium Armor Plating Medium Armor Plating > --- WEAPON ----------- Beam Rifle Advanced Beam Cannon Katana > --- INVENTORY -------- Light Treads Light Treads Improved Aluminum Leg Medium Matter Pod Medium Matter Pod Medium Armor Plating Improved Light Armor Plating [Rating: 21] Favorites ----------- Power Improved Ion Engine Engine Improved Ion Engine Propulsion Improved Treads Treads Improved Treads Leg Aluminum Leg Utility Small Storage Unit Device Terrain Scanner Storage Small Storage Unit Protection Light Armor Plating Weapon Heavy Assault Rifle Energy Gun Beam Rifle Energy Cannon Advanced Beam Cannon Ballistic Gun Heavy Assault Rifle Slashing Weapon Katana Build | -11 -10 -9 -9 -8 ------- Run | Yrd Mat Mat Min Mat Slots Evolved 4 | . . 2 . 2 Power . | . . . . . Propulsion 1 | . . 1 . . Utility 2 | . . . . 2 Weapon 1 | . . 1 . . Parts Attached 49 | . 3 29 3 14 Power 3 | . . 2 . 1 Engine 3 | . . 2 . 1 Core . | . . . . . Reactor . | . . . . . Propulsion 18 | . . 10 1 7 Treads 15 | . . 10 1 4 Leg 3 | . . . . 3 Wheel . | . . . . . Hover . | . . . . . Flight . | . . . . . Utility 15 | . 2 7 1 5 Device 4 | . 2 . . 2 Storage 2 | . . 2 . . Processor . | . . . . . Hackware . | . . . . . Protection 9 | . . 5 1 3 Artifact . | . . . . . Weapon 13 | . 1 10 1 1 Energy Gun 3 | . . 2 . 1 Energy Cannon 1 | . . 1 . . Ballistic Gun 8 | . 1 7 . . Ballistic Cannon . | . . . . . Launcher . | . . . . . Special Weapon . | . . . . . Impact Weapon . | . . . . . Slashing Weapon 1 | . . . 1 . Piercing Weapon . | . . . . . Special Melee Weapon . | . . . . . Unidentified Prototypes 1 | . . 1 . . Parts Lost 25 | . . 3 1 21 Power 2 | . . . . 2 Propulsion 9 | . . 1 . 8 Utility 9 | . . 1 1 7 Weapon 5 | . . 1 . 4 Highest Loss Streak 21 | . . 3 1 21 To Critical Strikes . | . . . . . Average Slot Usage (%) 96 | . 96 99 95 76 Engine 10 | . 14 11 11 6 Treads 23 | . . 28 31 18 Leg 6 | . 28 4 . 3 Device 3 | . 10 2 . 8 Storage 10 | . 14 11 11 6 Protection 8 | . . 8 8 12 Energy Gun 2 | . . 1 11 6 Energy Cannon 2 | . . 1 11 6 Ballistic Gun 24 | . 28 29 2 . Slashing Weapon 1 | . . . 8 6 Naked Turns 1 | . . . . 1 Heaviest Build 36 | 12 15 29 28 36 Greatest Support 69 | 20 20 69 63 63 Greatest Overweight (x) 4 | . . . . 4 Average Overweight (x) . | . . . . . Largest Inventory Capacity 25 | . 8 25 8 8 Average Capacity 7 | . 8 8 8 7 Most Carried 9 | . 6 9 8 7 Average Carried 7 | . 5 7 7 5 Final Capacity 8 | 8 8 8 8 5 Final Carried 8 | 6 6 8 8 2 Class Distribution -------------------- 33% | Scavenger-Tank 22% | Tank 17% | Mutant 13% | Scavenger-Mutant 12% | Skirmisher Dominant Class ---------------- Mutant | -10/Materials Scavenger-Tank | -9/Materials Scavenger-Mutant | -9/Mines Scavenger-Mutant | -8/Materials Resources | -11 -10 -9 -9 -8 ----------- Run | Yrd Mat Mat Min Mat Matter Collected 1157 | 200 . 856 41 60 Remotely . | . . . . . Salvage Created 1022 | . . 749 101 172 Parts 61 | . . 50 3 8 Haulers Intercepted . | . . . . . Recyclers Shooed . | . . . . . Parts Field Recycled . | . . . . . Retrieved Matter . | . . . . . Parts Self-Destructed . | . . . . . Prevented . | . . . . . Kills | -11 -10 -9 -9 -8 ------- Run | Yrd Mat Mat Min Mat Combat Hostiles Destroyed 25 | . . 18 2 5 Melee 2 | . . . . 2 Guns 20 | . . 18 1 1 Cannons 3 | . . . 1 2 Classes Destroyed 6 | . . 5 1 . Worker 3 | . . 3 . . Swarmer 8 | . . 6 . 2 Grunt 10 | . . 6 1 3 Brawler 1 | . . 1 . . Duelist 1 | . . . 1 . Sentry 5 | . . 5 . . Best Kill Streak 4 | . . 4 2 4 Combat Bots Only 4 | . . 4 2 4 Max Kills in Single Turn 3 | . . 3 1 1 Gunslinging 1 | . . 1 . . Exploded . | . . . . . Melee 1 | . . . . 1 Uniques/NPCs Destroyed . | . . . . . Combat | -11 -10 -9 -9 -8 -------- Run | Yrd Mat Mat Min Mat Hostile Shots Fired 359 | . 2 127 7 223 Missed 69 | . 1 29 . 39 Damage Taken 3602 | . 10 1178 112 2302 Core 730 | . . 160 11 559 Absorbed by Shields . | . . . . . Core Remaining (%) 85 | 100 100 . 57 . Volleys Fired 65 | . . 48 4 13 Largest 3 | . . 3 2 2 Hottest 147 | . . 147 124 124 Shots Fired 173 | . . 144 8 21 Gun 148 | . . 133 4 11 Cannon 25 | . . 11 4 10 Launcher . | . . . . . Special . | . . . . . Kinetic 122 | . . 122 . . Thermal 51 | . . 22 8 21 Explosive . | . . . . . Electromagnetic . | . . . . . Robot Hit Streak 12 | . . 12 9 8 Robot Miss Streak 4 | . . 4 2 4 Penetration Max . | . . . . . Secondary Targets 5 | . . 5 . . Max Gunslinging Chain 1 | . . 1 . . Shots Hit Robots 117 | . . 94 4 19 Core Hits 43 | . . 31 3 9 Critical Kills 1 | . . 1 . . Critical Parts Destroyed . | . . . . . Critical Strikes 4 | . . 2 . 2 Burn 2 | . . 1 . 1 Destroy 1 | . . 1 . . Sever 1 | . . . . 1 Melee Attacks 7 | . . . . 7 Impact . | . . . . . Slashing 7 | . . . . 7 Piercing . | . . . . . Sneak Attacks . | . . . . . Combat Hostiles . | . . . . . Follow-up Attacks . | . . . . . Damage Inflicted 2060 | . . 1506 70 484 Guns 1499 | . . 1338 28 133 Cannons 347 | . . 143 42 162 Explosions . | . . . . . Melee 184 | . . . . 184 Ramming 30 | . . 25 . 5 Kinetic 1193 | . . 1193 . . Thermal 653 | . . 288 70 295 Explosive . | . . . . . Electromagnetic . | . . . . . Impact . | . . . . . Slashing 184 | . . . . 184 Piercing . | . . . . . Highest Corruption 2 | . . 2 2 . Average Corruption 2 | . . 2 2 . Corruption Purged . | . . . . . Corruption Blocked . | . . . . . Effects 9 | . . 8 1 . Message Errors 2 | . . 2 . . Matter Fused 2 | . . 2 . . Energy Discharges 2 | . . 1 1 . Data Loss (minor) 3 | . . 3 . . Overload Shots . | . . . . . Overflow Damage . | . . . . . Projectiles . | . . . . . Explosions . | . . . . . Melee . | . . . . . Knockbacks . | . . . . . Impact . | . . . . . Kinetic . | . . . . . Secondary . | . . . . . Self-Inflicted Damage . | . . . . . Shots . | . . . . . Rammed 5 | . . 5 . . Targets Rammed 11 | . 1 6 . 4 Kicked 6 | . 1 1 . 4 Crushed . | . . . . . Highest Temperature 526 | . . 476 267 526 Average Temperature 143 | . . 122 135 212 Received Heat Transfer 1083 | . 6 516 30 531 Effects 6 | . . 1 . 5 Short Circuit 1 | . . 1 . . Damage (minor) 1 | . . . . 1 Damage (major) 4 | . . . . 4 Siege Activations . | . . . . . Robots Corrupted . | . . . . . Combat Hostiles . | . . . . . Parts Fried . | . . . . . Impact Corruptions . | . . . . . Robots Melted . | . . . . . Combat Hostiles . | . . . . . Parts Melted . | . . . . . Heat Transferred 1554 | . . 703 148 703 Parts Sabotaged . | . . . . . Parts Stolen . | . . . . . Parts Stripped . | . . . . . Power Chain Reactions . | . . . . . Alert | -11 -10 -9 -9 -8 ------- Run | Yrd Mat Mat Min Mat Peak Influence 238 | . 30 238 91 205 Initial 51 | . . 12 51 35 Average 76 | . 13 89 86 65 Maximum Alert Level 1 | . . 1 . 1 Low Security (%) 98 | . 100 97 100 99 Level 1 1 | . . 2 . . Level 2 . | . . . . . Level 3 . | . . . . . Level 4 . | . . . . . Level 5 . | . . . . . High Security . | . . . . . Max Security . | . . . . . Squads Dispatched 4 | . 1 1 . 2 Investigation . | . . . . . Extermination . | . . . . . Reinforcement 4 | . 1 1 . 2 Assault . | . . . . . Garrison . | . . . . . Intercept . | . . . . . Searches Triggered . | . . . . . Construction Impeded . | . . . . . Haulers Reinforced . | . . . . . Active Scanning Responses . | . . . . . Cargo Convoy Interrupts . | . . . . . Stealth | -11 -10 -9 -9 -8 --------- Run | Yrd Mat Mat Min Mat Distress Signals 10 | . . 9 . 1 Communications Jammed . | . . . . . Distress Signals . | . . . . . Times Spotted 57 | . 6 36 2 13 Peak Tracking Total 11 | . 3 7 2 11 Tactical Retreats 4 | . 2 1 . 1 Traps | -11 -10 -9 -9 -8 ------- Run | Yrd Mat Mat Min Mat Traps Triggered 2 | . . 2 . . Indirectly . | . . . . . Trap Hack Attempts . | . . . . . Triggered . | . . . . . Disarmed . | . . . . . Reprogrammed . | . . . . . Reused . | . . . . . Traps Extracted . | . . . . . Installed . | . . . . . Triggered . | . . . . . Machines | -11 -10 -9 -9 -8 ---------- Run | Yrd Mat Mat Min Mat Machines Disabled . | . . . . . Max in Single Turn . | . . . . . Machines Repaired . | . . . . . Machines Dismantled . | . . . . . Machines Sabotaged . | . . . . . Overloaded Fab Kills . | . . . . . Hacking | -11 -10 -9 -9 -8 --------- Run | Yrd Mat Mat Min Mat Machines Accessed 7 | . . 6 . 1 Terminals 6 | . . 5 . 1 Fabricators . | . . . . . Repair Stations . | . . . . . Recycling Units 1 | . . 1 . . Scanalyzers . | . . . . . Garrison Access . | . . . . . Total Hacks 16 | . . 15 . 1 Successful 6 | . . 6 . . Failed 10 | . . 9 . 1 Catastrophic 2 | . . 2 . . Database Lockouts . | . . . . . Manual . | . . . . . Terminals 13 | . . 12 . 1 Fabricators . | . . . . . Repair Stations . | . . . . . Recycling Units 3 | . . 3 . . Scanalyzers . | . . . . . Garrison Access . | . . . . . Terminal Hacks 4 | . . 4 . . Record 1 | . . 1 . . Prototype ID Bank 1 | . . 1 . . Emergency Access Points 1 | . . 1 . . Zone Layout 1 | . . 1 . . Fabricator Hacks . | . . . . . Repair Station Hacks . | . . . . . Recycling Unit Hacks 2 | . . 2 . . Report Inventory 1 | . . 1 . . Retrieve Components 1 | . . 1 . . Scanalyzer . | . . . . . Garrison Access Hacks . | . . . . . Unauthorized Hacks . | . . . . . Terminals . | . . . . . Fabricators . | . . . . . Repair Stations . | . . . . . Recycling Units . | . . . . . Scanalyzers . | . . . . . Garrison Access . | . . . . . Data Cores Recovered . | . . . . . Used . | . . . . . Hacking Detections 4 | . . 4 . . Full Trace Events 2 | . . 2 . . Feedback Events . | . . . . . Feedback Blocked . | . . . . . Robot Schematics Acquired . | . . . . . Robots Built . | . . . . . Authchips . | . . . . . Time . | . . . . . Total Robot Build Rating . | . . . . . Part Schematics Acquired . | . . . . . Parts Built . | . . . . . Authchips . | . . . . . Time . | . . . . . Total Part Build Rating . | . . . . . Parts Repaired . | . . . . . Time . | . . . . . Parts Recycled . | . . . . . Recycled Matter . | . . . . . Retrieved Matter . | . . . . . Retrieved Components 2 | . . 2 . . Parts Scanalyzed . | . . . . . Part Schematics Acquired . | . . . . . Parts Damaged . | . . . . . Bothacking | -11 -10 -9 -9 -8 ------------ Run | Yrd Mat Mat Min Mat Used RIF Installer . | . . . . . Robots Hacked . | . . . . . Non-combat . | . . . . . Combat . | . . . . . Robot Hacks Applied . | . . . . . Relay Couplers Released . | . . . . . Fabnet Peak Effective % . | . . . . . Robots Rewired . | . . . . . Allies Hacked . | . . . . . Hacks Repelled . | . . . . . Allies | -11 -10 -9 -9 -8 -------- Run | Yrd Mat Mat Min Mat Total Allies . | . . . . . Largest Group . | . . . . . Highest-Rated Group . | . . . . . Highest-Rated Ally . | . . . . . Total Orders . | . . . . . Ally Attacks . | . . . . . Total Damage . | . . . . . Kills . | . . . . . Allies Corrupted . | . . . . . Allies Melted . | . . . . . Intel | -11 -10 -9 -9 -8 ------- Run | Yrd Mat Mat Min Mat Robot Analysis Total . | . . . . . Derelict Logs Recovered . | . . . . . Drone Launches . | . . . . . Drone Recoveries . | . . . . . Exploration | -11 -10 -9 -9 -8 ------------- Run | Yrd Mat Mat Min Mat Turns Passed 1748 | . 222 1232 81 213 Spaces Moved 890 | 1 168 605 40 76 Core 5 | . . . . 5 Treads 533 | . . 431 40 62 Legs 352 | 1 168 174 . 9 Wheels . | . . . . . Hover . | . . . . . Flight . | . . . . . Fastest Speed 120 | 120 120 120 160 120 Average Speed 144 | 120 120 148 160 157 Slowest Speed 250 | 120 120 160 160 250 Overloaded Moves . | . . . . . Propulsion Burnouts . | . . . . . Robots Hopped . | . . . . . Cave-ins Triggered . | . . . . . Exploration Rate (%) 24 | 2 41 51 18 8 Regions Visited 4 Branch Regions 1 Pre-discovered Areas . | . . . . . Known Exits Taken . | . . . . . Unknown Exits Taken 4 | 1 1 1 1 . Scrap Searched . | . . . . . Spaces Dug . | . . . . . Terrain Destroyed . | . . . . . Melee . | . . . . . Projectile . | . . . . . AOE . | . . . . . Terrain Rammed . | . . . . . Walls Destroyed . | . . . . . Machines Disabled . | . . . . . Actions | -11 -10 -9 -9 -8 --------- Run | Yrd Mat Mat Min Mat Total 1212 | . 187 841 50 134 Wait 127 | . 13 95 . 19 Move 886 | . 167 604 39 76 Hop . | . . . . . Pick Up 31 | . 1 28 1 1 Fast Attach 12 | . 1 4 2 5 Attach 20 | . . 12 1 7 Detach 2 | . . 1 1 . Swap 17 | . 2 13 . 2 Drop 33 | . 1 30 2 . Fire 65 | . . 48 4 13 Melee 7 | . . . . 7 Ram . | . . . . . Kick 6 | . 1 1 . 4 Crush 5 | . . 5 . . Escape Stasis . | . . . . . Rewire 1 | . 1 . . . Trap . | . . . . . Miscellaneous . | . . . . . Route ------- -11/Scrapyard -10/Materials -9/Materials -9/Mines -8/Materials History --------- Turn | Location | Event 1 | -11/Scrapyard | Discovered new exit (range 0) 1 | -11/Scrapyard | Entered Materials 209 | -10/Materials | Discovered new exit (range 10) 223 | -10/Materials | Entered another Materials area 223 | -9/Materials | Evolved 2 slots: Propulsion x1, Weapon x1 827 | -9/Materials | Build established: Scavenger-Tank 1034 | -9/Materials | Discovered new exit (range 16) 1143 | -9/Materials | Lost 3 parts (1n1u1w) 1455 | -9/Materials | Entered Mines 1472 | -9/Mines | Met a Derelict bent on vengeance 1519 | -9/Mines | Discovered new exit (range 9) 1536 | -9/Mines | Entered Materials 1536 | -8/Materials | Evolved 2 slots: Utility x2 1730 | -8/Materials | Core integrity fell below 50% 1741 | -8/Materials | Core integrity fell below 20% 1749 | -8/Materials | Destroyed by H-55 Commando with Gauss Rifle Last Messages --------------- 01716_ Sensor Array destroyed. 01721_ Acquired Lgt. Ion Engine. 01723_ Aluminum Leg destroyed. 01723_ Particle Gun destroyed. 01724_ Acquired Imp. Heat Sink. 01726_ Kicked G-47 Trooper. 01726_ Penetrated by Slug. 01726_ Lgt. Ion Engine destroyed. 01727_ Kicked G-47 Trooper. 01728_ Kicked G-47 Trooper out of the way. 01729_ Penetrated by Slug. 01730_ Kicked G-47 Trooper. 01733_ Penetrated by Slug. 01738_ M-13 Machinist repairs G-47 Trooper. 01738_ Aluminum Leg destroyed. 01738_ Penetrated by Slug. 01741_ M-13 Machinist repairs H-55 Commando. 01744_ Penetrated by Slug. 01748_ Imp. Heat Sink destroyed. 01749_ Penetrated by Slug. Map ----- +----------------------------------------------------+ | ???????????????????????????????????? | | ???????????????????????????????????? | | ???????????????????????????????????? | | ???????????????????????????????????? | | ???????????????????????????????????? | | ???????????????????????????????????? | | ???????????????????????????????????? | | ???????????????????????????????????? | | ??????????????? ?????????????????? | | ??????????????? #????????????????? | | ??????????????? #????????????????? | | ??????????????? #????????????????? | | ??????????????# #????????????????? | | ??????????????+ #????????????????? | | ??????????????# #????????????????? | | ??????????????# #?"Y?????????????? | | ??????????????# ##" "????????????? | | ?????????????## ? ?????????? | | ?????????????#" ??????????? | | ??????????????T ??????????? | | ??????????????" """ """??????????? | | ??????????????# """ """ ? ? ?????? | | ??????????????# """ """ ???? | | ???????######## w ???? | | ?#######=*= "T??????? | | # # *%@g ???? | | # """ #s= h m ???? | | # """ %+[ %##########"T"#######????? | | # """ #%% #??????????###??????????? | | # #= =#?#######???????????????? | | # # #?#"""""#???????????????? | | ######## ###""T""#####???????????? | | ???????# # #??????????? | | ???????# # """ """ #??????????? | | ???????# + """ """ ???????????? | | ???????# # """ """ ???????????? | | ???????# # #??????????? | | ???????# ##############??????????? | | ???????# # #?????????????? | | ???????# # #?????????????? | | ???????# # """ """ #?????????????? | | ???????# + """ """ #?????????????? | | ???????# # """ """ #?????????????? | | ???????# # #?????????????? | | ???????# # #?????????????? | | ???????##### #?????????????? | | ???????????###########?????????????? | | ???????????????????????????????????? | | ???????????????????????????????????? | | ???????????????????????????????????? | +----------------------------------------------------+ Best States ------------- Heat Dissipation 45 Energy Generation 12 Energy Capacity 265 Matter Stores 300 Matter Capacity 300 Sight Range 16 Robot Scan Range 14 Terrain Scan Range 14 Terrain Scan Density 10 ECM Strength 1 Armor Coverage 450 Evasion (%) 55 Recoil Reduction 3 Item Schematics ----------------- None Robot Schematics ------------------ None Fabricated ------------ Nothing Alien Tech Used ----------------- None Achievements -------------- None Challenges ------------ None Game ------ Seed FusionRiotDissipator Manual? 0 Play Time 00:31:08 Cumulative 27.7 hours Start 2024.03.14 @ 10:42:01 End 2024.03.14 @ 13:03:31 Sessions 3 Manual Loads 0 Difficulty Rogue Special Mode None Game No. 34 Rogue 34 Adventurer 0 Explorer 0 Win Type - Total 0 Types 0/0/0/0/0/0/0/0/0 Lore% 9 Gallery% 32 Achievement% 25 Wizard Run 0 Options --------- Layout 2 ASCII 1 Keyboard 1 Movement Numpad Keybinds 1 Fullscreen 1 Font 32/SmallcapsGlow Map View 50x44 Zoom Use 0% Tactical HUD 1 Map Filters NONE Filters NONE Steam 1 RUN: 5cfacd47-b215-4e42-b5c8-2c0580611053